Cogmind - Beta 15 @@@ ROGUE MODE // 2025.05.20 @ 18:54:16 Player: Minty Result: Destroyed by Y-45 Defender with Heavy Assault Rifle Performance ------------- Evolutions (2) 1000 Regions Visited (6) 1200 Robots Destroyed (32) 160 Value Destroyed (2331) 2331 Prototype IDs (31) 620 Alien Tech Used (0) 0 Bonus (1094) 1094 TOTAL SCORE: 6405 Bonus ------- High Alert Combat Kills 94 Entered Garrisons 200 Used RIF Installer 500 Aligned with FarCom 300 Cogmind --------- Core Integrity 0/550 Matter 107/300 Energy 76/100 System Corruption 6% Temperature Cool (9) Movement Walking (45) Location -8/Garrison Parts ------- > --- POWER (1) -------- (None) > --- PROPULSION (3) --- Potential Leg Potential Leg Combat Airjet > --- UTILITY (5) ------ Advanced Melee Analysis Suite Advanced Melee Analysis Suite Target Analyzer Relay Coupler [Grunt] (24) > --- WEAPON (2) ------- Power Sword > --- INVENTORY (5) ---- Relay Coupler [Hunter] (14) Relay Coupler [Hunter] (17) Remote Datajack Enhanced Flamer Peak State ------------ > --- POWER ------------ Micro Nuclear Core > --- PROPULSION ------- Gravmag System Combat Airjet Combat Airjet > --- UTILITY ---------- Small Storage Unit Advanced Melee Analysis Suite Advanced Melee Analysis Suite Target Analyzer Relay Coupler [Grunt] > --- WEAPON ----------- Power Sword Power Sword > --- INVENTORY -------- Potential Leg Potential Leg Relay Coupler [Grunt] Relay Coupler [Hunter] Relay Coupler [Hunter] Relay Coupler [Hunter] Remote Datajack Enhanced Flamer [Rating: 49] Favorites ----------- Power Ion Engine Engine Ion Engine Power Core Micro Nuclear Core Propulsion Combat Airjet Leg Aluminum Leg Wheel Wheel Hover Unit Combat Airjet Utility Small Storage Unit Device Improved Heat Sink Storage Small Storage Unit Processor Launcher Guidance Computer Hackware Hacking Suite Protection Improved Light Armor Plating Weapon Gauss Rifle Energy Gun Medium Laser Ballistic Gun Gauss Rifle Launcher Mini Grenade Launcher Special Weapon Remote Datajack Slashing Weapon Power Sword Special Melee Weapon Datajack Build | -11 -10 -10 -10 -9 -8 -8 ------- Run | Yrd Mat Min Exi Min Mat Gar Slots Evolved 4 | . . . . . 4 . Power . | . . . . . . . Propulsion 1 | . . . . . 1 . Utility 3 | . . . . . 3 . Weapon . | . . . . . . . Parts Attached 46 | . 1 7 1 . 7 30 Power 3 | . . 1 . . . 2 Engine 1 | . . 1 . . . . Core 2 | . . . . . . 2 Reactor . | . . . . . . . Propulsion 11 | . . 4 . . 1 6 Treads . | . . . . . . . Leg 2 | . . . . . . 2 Wheel 2 | . . 2 . . . . Hover 7 | . . 2 . . 1 4 Flight . | . . . . . . . Utility 20 | . 1 1 . . 5 13 Device 7 | . . . . . 1 6 Storage 1 | . . . . . 1 . Processor 5 | . 1 1 . . . 3 Hackware 6 | . . . . . 2 4 Protection 1 | . . . . . 1 . Artifact . | . . . . . . . Weapon 12 | . . 1 1 . 1 9 Energy Gun . | . . . . . . . Energy Cannon . | . . . . . . . Ballistic Gun 6 | . . . . . . 6 Ballistic Cannon . | . . . . . . . Launcher 1 | . . 1 . . . . Special Weapon 1 | . . . . . . 1 Impact Weapon . | . . . . . . . Slashing Weapon 2 | . . . . . . 2 Piercing Weapon . | . . . . . . . Special Melee Weapon 2 | . . . 1 . 1 . Unidentified Prototypes . | . . . . . . . Parts Lost 18 | . . 1 . . . 17 Power 4 | . . 1 . . . 3 Propulsion 3 | . . . . . . 3 Utility 6 | . . . . . . 6 Weapon 5 | . . . . . . 5 Highest Loss Streak 5 | . . 1 . . . 5 To Critical Strikes . | . . . . . . . Average Backups 7 | . 6 7 7 8 8 7 Power 1 | . 1 . 2 3 3 . Propulsion 2 | . 4 3 2 3 2 2 Utility 1 | . . . 1 1 1 2 Weapon 1 | . 1 1 1 1 1 1 Tool/Special . | . . . . . . . Unused Backups 23 | 6 . 4 . . 1 12 Power 5 | 1 . 1 . . . 3 Propulsion 4 | 2 . 2 . . . . Utility 9 | 1 . . . . 1 7 Weapon 5 | 2 . 1 . . . 2 Tool/Special . | . . . . . . . Average Slot Usage (%) 93 | . 92 97 100 100 93 89 Engine 7 | . 14 11 14 14 9 1 Core 2 | . . . . . . 5 Leg 2 | . 28 8 . . . . Hover 23 | . . 13 28 28 24 26 Device 7 | . . . . . 4 16 Storage 11 | . 14 14 14 14 10 8 Processor 10 | . 7 14 14 14 9 7 Hackware 3 | . . . . . 10 5 Protection 2 | . . . . . 8 1 Energy Gun 3 | . 14 14 4 . . . Ballistic Gun 6 | . 14 8 . . . 11 Launcher 6 | . . 5 14 14 9 1 Special Melee Weapon 3 | . . . 9 14 9 . Peak Build Rating 49 | . 7 20 22 22 38 49 Average Rating 29 | . 6 13 21 22 32 39 On Entrance 17 | 6 6 7 20 22 22 38 Naked Turns . | . . . . . . . Heaviest Build 22 | 11 11 13 13 12 17 22 Greatest Support 36 | 20 20 24 24 24 36 36 Greatest Overweight (x) . | . . . . . . . Average Overweight (x) . | . . . . . . . Largest Inventory Capacity 8 | . 8 8 8 8 8 8 Average Capacity 7 | . 8 8 8 8 8 7 Most Carried 8 | . 6 8 8 8 8 8 Average Carried 7 | . 6 7 7 8 7 7 Final Capacity 8 | 8 8 8 8 8 8 5 Final Carried 8 | 6 6 7 8 8 8 4 Class Distribution -------------------- 80% | Scavenger-Mutant 10% | Scavenger-Scout 9% | Mutant Dominant Class ---------------- Scavenger-Mutant | -10/Mines Scavenger-Mutant | -10/Exiles Scavenger-Mutant | -9/Mines Scavenger-Mutant | -8/Materials Scavenger-Mutant | -8/Garrison Resources | -11 -10 -10 -10 -9 -8 -8 ----------- Run | Yrd Mat Min Exi Min Mat Gar Matter Collected 1224 | 200 . 232 . . 118 674 Remotely . | . . . . . . . Salvage Created 1008 | . . 180 . . 252 576 Parts 53 | . . 3 . . 17 33 Haulers Intercepted . | . . . . . . . Recyclers Shooed 1 | . . 1 . . . . Parts Field Recycled . | . . . . . . . Retrieved Matter . | . . . . . . . Parts Self-Destructed . | . . . . . . . Prevented . | . . . . . . . Kills | -11 -10 -10 -10 -9 -8 -8 ------- Run | Yrd Mat Min Exi Min Mat Gar Combat Hostiles Destroyed 24 | . . 1 . . 6 17 Guns 11 | . . 1 . . . 10 AOE 13 | . . . . . 6 7 Classes Destroyed 9 | . . 3 . . 3 3 Worker 3 | . . 1 . . 2 . Recycler 3 | . . 2 . . 1 . Mechanic 1 | . . . . . . 1 Operator 2 | . . . . . 2 . Swarmer 4 | . . . . . . 4 Grunt 13 | . . . . . 5 8 Brawler 1 | . . . . . 1 . Programmer 5 | . . . . . . 5 Assembled 1 | . . 1 . . . . Best Kill Streak 8 | . . 2 . . 8 4 Combat Bots Only 6 | . . 1 . . 6 4 Max Kills in Single Turn 4 | . . 1 . . 2 4 Gunslinging . | . . . . . . . Exploded 4 | . . . . . 2 4 Melee . | . . . . . . . Uniques/NPCs Destroyed . | . . . . . . . Combat | -11 -10 -10 -10 -9 -8 -8 -------- Run | Yrd Mat Min Exi Min Mat Gar Hostile Shots Fired 200 | . . 17 . . 11 172 Missed 64 | . . 3 . . 4 57 Hits 136 | . . 14 . . 7 115 Melee 1 | . . 1 . . . . Projectile 135 | . . 13 . . 7 115 Critical Strikes 3 | . . . . . . 3 Part Disruptions 1 | . . . . . . 1 Damage Taken 2387 | . . 188 . . 173 2026 Core 599 | . . 36 . . 64 499 Absorbed by Shields . | . . . . . . . Core Remaining (%) 92 | 100 . . . 85 . . Volleys Fired 77 | . . 12 . . 10 55 Largest 2 | . . 2 . . 1 2 Hottest 70 | . . 70 . . 30 56 Shots Fired 119 | . . 19 . . 10 90 Gun 87 | . . 14 . . . 73 Cannon . | . . . . . . . Launcher 24 | . . 5 . . 10 9 Special 8 | . . . . . . 8 Kinetic 80 | . . 7 . . . 73 Thermal 7 | . . 7 . . . . Explosive 24 | . . 5 . . 10 9 Electromagnetic . | . . . . . . . Robot Hit Streak 14 | . . 4 . . 5 14 Robot Miss Streak 4 | . . 3 . . 1 4 Penetration Max 1 | . . . . . . 1 Secondary Targets 1 | . . . . . . 1 Max Gunslinging Chain 1 | . . . . . . 1 Shots Hit Robots 75 | . . 7 4 . 6 58 Core Hits 59 | . . 6 . . 18 35 Critical Kills 1 | . . . . . . 1 Critical Parts Destroyed . | . . . . . . . Critical Strikes 2 | . . . . . . 2 Destroy 1 | . . . . . . 1 Sever 1 | . . . . . . 1 Melee Attacks 11 | . . . 4 . 1 6 Impact . | . . . . . . . Slashing 6 | . . . . . . 6 Piercing . | . . . . . . . Sneak Attacks 5 | . . . 4 . 1 . Combat Hostiles . | . . . . . . . Follow-up Attacks 1 | . . . . . . 1 Damage Inflicted 2951 | . . 282 . . 705 1964 Guns 1271 | . . 66 . . . 1205 Cannons . | . . . . . . . Explosions 1423 | . . 216 . . 705 502 Melee 252 | . . . . . . 252 Ramming 5 | . . . . . . 5 Kinetic 1246 | . . 41 . . . 1205 Thermal 25 | . . 25 . . . . Explosive 1423 | . . 216 . . 705 502 Electromagnetic . | . . . . . . . Impact . | . . . . . . . Slashing 252 | . . . . . . 252 Piercing . | . . . . . . . Highest Corruption 6 | . . . . . . 6 Average Corruption 4 | . . . . . . 4 Corruption Purged . | . . . . . . . Corruption Blocked . | . . . . . . . Effects 11 | . . . . . . 11 Message Errors 6 | . . . . . . 6 Matter Fused 1 | . . . . . . 1 Heat Flow Errors 1 | . . . . . . 1 Energy Discharges 1 | . . . . . . 1 Data Loss (minor) 1 | . . . . . . 1 Alerts 1 | . . . . . . 1 Overload Shots . | . . . . . . . Overflow Damage 12 | . . 10 . . . 2 Projectiles . | . . . . . . . Explosions 12 | . . 10 . . . 2 Melee . | . . . . . . . Knockbacks . | . . . . . . . Impact . | . . . . . . . Kinetic . | . . . . . . . Secondary . | . . . . . . . Self-Inflicted Damage 56 | . . . . . 32 24 Shots 2 | . . . . . 1 1 Rammed . | . . . . . . . Targets Rammed 2 | . . . . . . 2 Kicked 2 | . . . . . . 2 Crushed . | . . . . . . . Highest Temperature 150 | . . 150 . . . 109 Average Temperature 66 | . . 81 . . . 37 Received Heat Transfer 551 | . . 80 . . 45 426 Siege Activations . | . . . . . . . Martial Activations . | . . . . . . . Shielding Activations . | . . . . . . . Robots Disrupted . | . . . . . . . Combat Hostiles . | . . . . . . . Robots Corrupted . | . . . . . . . Combat Hostiles . | . . . . . . . Parts Fried . | . . . . . . . Impact Corruptions . | . . . . . . . Robots Melted . | . . . . . . . Combat Hostiles . | . . . . . . . Parts Melted . | . . . . . . . Heat Transferred 74 | . . 74 . . . . Parts Sabotaged . | . . . . . . . Parts Stolen . | . . . . . . . Parts Stripped . | . . . . . . . Power Chain Reactions . | . . . . . . . Alert | -11 -10 -10 -10 -9 -8 -8 ------- Run | Yrd Mat Min Exi Min Mat Gar Maximum Alert Level 3 | . . . . . 1 3 Low Security (%) 40 | . 100 100 . 100 62 8 Level 1 24 | . . . . . 37 30 Level 2 22 | . . . . . . 39 Level 3 12 | . . . . . . 22 Level 4 . | . . . . . . . Level 5 . | . . . . . . . High Security . | . . . . . . . Max Security . | . . . . . . . Peak Influence 755 | . . 22 . . 254 755 Initial 44 | . . . . . . 44 Average 291 | . . 3 . . 115 474 Influence Increases 1214 | . . 37 . . 326 851 Destroy 0b10 Robot/C 460 | . . . . . 120 340 Destroy 0b10 Robot/NC 50 | . . 15 . . 25 10 Destroy Leader 40 | . . . . . 20 20 Successful Hack 14 | . . . . . 4 10 Disable Machine 90 | . . . . . 60 30 Anti-Garrison Action 350 | . . . . . . 350 Destroy Structure 195 | . . 22 . . 97 76 Lose Combat Pursuer 15 | . . . . . . 15 Influence Decreases 549 | . . 22 15 . 258 254 Entered New Map 39 | . . . 15 . . 24 Time Decay 130 | . . 22 . . 108 . Lost Part 170 | . . . . . . 170 Lost Ally 60 | . . . . . . 60 Purge Threat 150 | . . . . . 150 . Squads Dispatched 2 | . . . . . 2 . Investigation 1 | . . . . . 1 . Extermination . | . . . . . . . Reinforcement 1 | . . . . . 1 . Assault . | . . . . . . . Garrison . | . . . . . . . Intercept . | . . . . . . . Searches Triggered . | . . . . . . . Construction Impeded . | . . . . . . . Haulers Reinforced . | . . . . . . . Active Scanning Responses . | . . . . . . . Cargo Convoy Interrupts . | . . . . . . . Stealth | -11 -10 -10 -10 -9 -8 -8 --------- Run | Yrd Mat Min Exi Min Mat Gar Distress Signals 2 | . . . . . 2 . Communications Jammed . | . . . . . . . Distress Signals . | . . . . . . . Times Spotted 55 | . 1 9 . . 15 30 Peak Tracking Total 18 | . 2 18 . . 6 7 Tactical Retreats 6 | . . 1 . . 2 3 Traps | -11 -10 -10 -10 -9 -8 -8 ------- Run | Yrd Mat Min Exi Min Mat Gar Traps Triggered 4 | . . . . . 1 3 Indirectly . | . . . . . . . Trap Hack Attempts . | . . . . . . . Triggered . | . . . . . . . Disarmed . | . . . . . . . Reprogrammed . | . . . . . . . Reused . | . . . . . . . Traps Extracted . | . . . . . . . Installed . | . . . . . . . Triggered . | . . . . . . . Machines | -11 -10 -10 -10 -9 -8 -8 ---------- Run | Yrd Mat Min Exi Min Mat Gar Machines Disabled 14 | . . . . . 4 10 Max in Single Turn 2 | . . . . . 2 2 Garrison Relay 6 | . . . . . . 6 Phase Generator 1 | . . . . . . 1 Machines Repaired . | . . . . . . . Machines Dismantled . | . . . . . . . Machines Sabotaged . | . . . . . . . Overloaded Fab Kills . | . . . . . . . Hacking | -11 -10 -10 -10 -9 -8 -8 --------- Run | Yrd Mat Min Exi Min Mat Gar Machines Accessed 9 | . . . 2 . 6 1 Terminals 6 | . . . . . 5 1 Fabricators . | . . . . . . . Repair Stations . | . . . . . . . Recycling Units . | . . . . . . . Scanalyzers . | . . . . . . . Garrison Access 1 | . . . . . 1 . Total Hacks 24 | . . . 2 . 19 3 Successful 12 | . . . 2 . 9 1 Failed 12 | . . . . . 10 2 Catastrophic 1 | . . . . . 1 . Database Lockouts . | . . . . . . . Manual 12 | . . . 1 . 11 . Terminals 21 | . . . . . 18 3 Fabricators . | . . . . . . . Repair Stations . | . . . . . . . Recycling Units . | . . . . . . . Scanalyzers . | . . . . . . . Garrison Access 1 | . . . . . 1 . Terminal Hacks 9 | . . . 2 . 6 1 Record 1 | . . . 1 . . . Robot Analysis 1 | . . . . . 1 . Prototype ID Bank 1 | . . . . . 1 . Emergency Access Points 1 | . . . . . . 1 Unreport Threat 1 | . . . . . 1 . Locate Traps 1 | . . . . . 1 . Recall Reinforcements 1 | . . . . . 1 . Registered Components 1 | . . . . . 1 . Proto ID Catalog 1 | . . . 1 . . . Fabricator Hacks . | . . . . . . . Repair Station Hacks . | . . . . . . . Recycling Unit Hacks . | . . . . . . . Scanalyzer . | . . . . . . . Garrison Access Hacks 1 | . . . . . 1 . Unlock Access 1 | . . . . . 1 . Unauthorized Hacks 2 | . . . . . 2 . Terminals 2 | . . . . . 2 . Botnet 2 | . . . . . 2 . Fabricators . | . . . . . . . Repair Stations . | . . . . . . . Recycling Units . | . . . . . . . Scanalyzers . | . . . . . . . Garrison Access . | . . . . . . . Data Cores Recovered 1 | . . . . . 1 . Used 1 | . . . . . 1 . Hacking Detections 7 | . . . . . 6 1 Full Trace Events 2 | . . . . . 1 1 Feedback Events 1 | . . . . . . 1 Hackware Fried 1 | . . . . . . 1 Feedback Blocked . | . . . . . . . Robot Schematics Acquired . | . . . . . . . Robots Built . | . . . . . . . Authchips . | . . . . . . . Time . | . . . . . . . Total Robot Build Rating . | . . . . . . . Part Schematics Acquired . | . . . . . . . Parts Built . | . . . . . . . Authchips . | . . . . . . . Time . | . . . . . . . Total Part Build Rating . | . . . . . . . Parts Repaired . | . . . . . . . Time . | . . . . . . . Parts Recycled . | . . . . . . . Recycled Matter . | . . . . . . . Retrieved Matter . | . . . . . . . Retrieved Components . | . . . . . . . Parts Scanalyzed . | . . . . . . . Part Schematics Acquired . | . . . . . . . Parts Damaged . | . . . . . . . Bothacking | -11 -10 -10 -10 -9 -8 -8 ------------ Run | Yrd Mat Min Exi Min Mat Gar Used RIF Installer 1 | . . . . . . 1 Robots Hacked 7 | . . . 3 . 1 3 Non-combat 4 | . . . 3 . 1 . Combat 3 | . . . . . . 3 Robot Hacks Applied 9 | . . . 4 . 1 4 parse_system 4 | . . . 4 . . . check_alert 1 | . . . . . 1 . amplify_resonance 1 | . . . . . . 1 reboot_system 1 | . . . . . . 1 formatsys_high 2 | . . . . . . 2 Relay Couplers Released 24 | . . . . . . 24 Machine Destruction 24 | . . . . . . 24 Attached 4 | . . . . . . 4 Fabnet Peak Effective % . | . . . . . . . Robots Rewired 1 | . . . . . . 1 Allies Hacked . | . . . . . . . Hacks Repelled . | . . . . . . . Allies | -11 -10 -10 -10 -9 -8 -8 -------- Run | Yrd Mat Min Exi Min Mat Gar Total Allies 3 | . . . . . . 3 Largest Group 1 | . . . . . . 1 Highest-Rated Group 34 | . . . . . . 34 Highest-Rated Ally 34 | . . . . . . 34 Total Orders . | . . . . . . . Ally Attacks 4 | . . . . . . 4 Total Damage 279 | . . . . . . 279 Kills . | . . . . . . . Allies Corrupted . | . . . . . . . Allies Melted . | . . . . . . . Intel | -11 -10 -10 -10 -9 -8 -8 ------- Run | Yrd Mat Min Exi Min Mat Gar Active Infowar (turns) 286 | . . . . . 102 184 Terrain 140 | . . . . . . 140 ECM 146 | . . . . . 102 44 Robot Analysis Total 1 | . . . . . 1 . Derelict Logs Recovered 1 | . . 1 . . . . Drone Launches . | . . . . . . . Drone Recoveries . | . . . . . . . Exploration | -11 -10 -10 -10 -9 -8 -8 ------------- Run | Yrd Mat Min Exi Min Mat Gar Turns Passed 1550 | . 31 239 335 31 223 691 Spaces Moved 1499 | 1 25 210 416 41 245 561 Core . | . . . . . . . Treads . | . . . . . . . Legs 78 | 1 25 51 . . . 1 Wheels 37 | . . 37 . . . . Hover 1384 | . . 122 416 41 245 560 Flight . | . . . . . . . Fastest Speed 45 | 120 120 77 77 77 74 45 Average Speed 77 | 120 120 88 77 77 76 71 Slowest Speed 120 | 120 120 120 77 77 77 80 Overloaded Moves 1 | . . . . . . 1 Propulsion Burnouts . | . . . . . . . Robots Hopped . | . . . . . . . Potential Cave-ins . | . . . . . . . Cave-ins Triggered . | . . . . . . . Exploration Rate (%) 35 | 2 9 59 70 14 31 66 Regions Visited 6 Branch Regions 3 Pre-discovered Areas 1 | . . . 1 . . . Known Exits Taken 1 | . . . . . 1 . Unknown Exits Taken 5 | 1 1 1 1 1 . . Scrap Searched 1 | . . 1 . . . . Spaces Dug 8 | . . . . . . 8 Terrain Destroyed 285 | . . 42 . . 124 119 Melee . | . . . . . . . Projectile 2 | . . . . . . 2 AOE 283 | . . 42 . . 124 117 Terrain Rammed . | . . . . . . . Walls Destroyed . | . . . . . . . Machines Disabled . | . . . . . . . Actions | -11 -10 -10 -10 -9 -8 -8 --------- Run | Yrd Mat Min Exi Min Mat Gar Total 1773 | . 25 246 430 40 267 765 Wait 32 | . . 6 . . . 26 Move 1493 | . 24 209 415 40 244 561 Hop . | . . . . . . . Pick Up 26 | . . 6 5 . 2 13 Fast Attach 27 | . 1 2 . . 4 20 Attach 13 | . . 2 1 . 1 9 Detach 8 | . . 1 1 . . 6 Swap 22 | . . 3 . . 2 17 Drop 39 | . . 5 4 . 3 27 Fire 77 | . . 12 . . 10 55 Melee 10 | . . . 4 . 1 5 Ram . | . . . . . . . Kick 2 | . . . . . . 2 Crush . | . . . . . . . Escape Stasis 18 | . . . . . . 18 Rewire 6 | . . . . . . 6 Trap . | . . . . . . . Miscellaneous . | . . . . . . . Route ------- -11/Scrapyard -10/Materials -10/Mines (discovered 4 exits: [*Mat x2] / *Exi / [*Sub]) -10/Exiles -9/Mines -8/Materials (discovered 2 exits: [*Fac] / Gar) -8/Garrison (discovered 2 exits: [*Fac x2]) History --------- Turn | Location | Event 1 | -11/Scrapyard | Discovered new exit (range 0) 1 | -11/Scrapyard | Entered Materials 1 | -10/Materials | Discovered new exit (range 14) 32 | -10/Materials | Entered Mines 49 | -10/Mines | A weapon hastily lodged in a ceiling crevice suddenly fell to the ground 93 | -10/Mines | Assembled infested the area 144 | -10/Mines | Met 8R-AWN 222 | -10/Mines | Learned Materials interactive machine intel 235 | -10/Mines | Discovered new exit (range 11) 244 | -10/Mines | Discovered new exit (range 12) 245 | -10/Mines | Discovered new exit (range 11) 268 | -10/Mines | Discovered new exit (range 5) 271 | -10/Mines | Entered Exiles 297 | -10/Exiles | Welcomed by 8R-AWN 310 | -10/Exiles | Met EX-HEX 336 | -10/Exiles | Met EX-BIN 345 | -10/Exiles | Aligned with FarCom system 346 | -10/Exiles | Given EX-Vault access code 365 | -10/Exiles | Opened EX-Vault 372 | -10/Exiles | Found Potential Leg 374 | -10/Exiles | Found Potential Leg 390 | -10/Exiles | Warned to stay clear of 0b10 Research branches 416 | -10/Exiles | Met EX-DEC 449 | -10/Exiles | Build established: Scavenger-Mutant 514 | -10/Exiles | Learned location of Zion (-7) 596 | -10/Exiles | Discovered new exit (range 14) 606 | -10/Exiles | Left Exiles lab with Potential Leg 606 | -10/Exiles | Entered Mines 633 | -9/Mines | Discovered new exit (range 7) 637 | -9/Mines | Entered Materials 637 | -8/Materials | Evolved 4 slots: Propulsion x1, Utility x3 638 | -8/Materials | Loaded intel: 19 interactive machine locations 820 | -8/Materials | Discovered new exit (range 3) 857 | -8/Materials | Identified exit to Garrison 860 | -8/Materials | Entered Garrison 885 | -8/Garrison | Triggered checkpoint 920 | -8/Garrison | Hacking Suite fried by hacking feedback 931 | -8/Garrison | Phase Generator disabled 967 | -8/Garrison | Discovered new exit (range 10) 990 | -8/Garrison | Triggered checkpoint 1038 | -8/Garrison | Lost 3 parts (1p2u) 1052 | -8/Garrison | Core integrity fell below 50% 1079 | -8/Garrison | Lost 3 parts (1u2w) 1126 | -8/Garrison | Garrison Relay disabled 1297 | -8/Garrison | Lost 3 parts (1p1n1u) 1373 | -8/Garrison | Garrison Relay disabled 1382 | -8/Garrison | Garrison Relay disabled 1382 | -8/Garrison | Garrison Relay disabled 1435 | -8/Garrison | Spotted B-75 Beast 1442 | -8/Garrison | Discovered new exit (range 6) 1456 | -8/Garrison | Installed Relay Interface Framework 1481 | -8/Garrison | Triggered checkpoint 1493 | -8/Garrison | Garrison Relay disabled 1544 | -8/Garrison | Core integrity fell below 20% 1551 | -8/Garrison | Destroyed by Y-45 Defender with Heavy Assault Rifle Last Messages --------------- 01512_ RMZO ZHMG>LDAXNGJ3L2BG1 01512_ Acquired 47 matter. 01515_ Triggered Alarm Trap. 01515_ An alarm sounds. 01520_ Dropped Gauss Rifle. 01521_ Acquired Power Sword. 01528_ Discarded Relay Coupler [Sentry]. 01528_ Discarded Relay Coupler [NC]. 01529_ Acquired Adv. Melee Analysis Suite. 01535_ Mic. Nuclear Core destroyed. 01535_ Gravmag System destroyed. 01536_ AECQAVJZ3JXURZI3X 68H>PZYKK>HHARIJ85SFW 01543_ Power Sword follow-up attack on B-75 Beast. 01543_ B-75 Beast Med. Reflective Plating severed. 01545_ Power Sword destroyed. 01545_ Sml. Storage Unit destroyed. 01547_ Acquired Potential Leg. 01548_ Cmb. Airjet destroyed. 01549_ Kicked Y-45 Defender. 01550_ Kicked Y-45 Defender out of the way. Map ----- +----------------------------------------------------+ | ????????????????????????????????????????????? | | ????????????????????????????????????????????? | | ???????????????#####????????????????????????? | | ???????????????#"""#????????????????????????? | | ???????????????#" "#????????????????????????? | | ???????????????#" "#????????????????????????? | | ???????????????#" "#????????????????????????? | | ???????????????# #????????????????????????? | | ???????????????## ##????????????????????????? | | ?????????######## #?????????????????????????? | | ?????????# ##!#?????????????????????????? | | ?????????# ##!#?????????????????????????? | | ?????????# < ##!#?????????????????????????? | | ?????????# ## #?????????????????????????? | | ?????????# ## #?????????????????????????? | | ??????????# #?# #?????????????????????????? | | ??????????# #?# #?????????????????????????? | | ?????###### ### #?????????????????????????? | | ?????# #?????????????????????????? | | ?????# #### ### #?????????????????????????? | | ?????# #??# #?# #?????#####???????????????? | | ?????# #??# #?# #????##] ]##??????????????? | | ###### #### ### ####?# [ #??????????????? | | #?# !![ #??????????????? | | #?##;BB##??????????????? | | ##### ### ##### ####??#@BB#???????????????? | | #???# #?# #???# ##????#YY##???????????????? | | #???# #?# ????# #????#; #????????????????? | | #???# #?# ##### %=#####;;[####?????????????? | | ##### #?# [= #?????????????? | | #?### ### "#### * ###?????????????? | | ##### #???????????????#"" ""#??????????????? | | #???# #???????????????#######??????????????? | | #???# #????????????????????????????????????? | | ##??# #????????????????????#???????????????? | | #### ##### ##?????"???????????????????????? | | ^ ??????????????????????? | | #### ##### ## ??#?????????????????????????? | | #??# #???????#????????????????????????????? | | #??# #????????????????????????????????????? | | "?# #????????????????????????????????????? | | "??###?????????????#??????????????????????? | | "?????????????????????????????????????????? | | "????????#????#####????###############????? | | ########??????#"# #????#""""" """""""#????? | | #? # ???????#"[=#????#" % " " #????? | | ### ###??????# ! #???##" = #????? | | #??????#" [#???# = = "#????? | | #### #?#????#"#[##### %= [ == "#????? | | ##?## ###??#???### = #????? | +----------------------------------------------------+ Best States ------------- Heat Dissipation 45 Energy Generation 15 Energy Capacity 250 Matter Stores 300 Matter Capacity 400 Sight Range 16 Terrain Scan Range 16 Terrain Scan Density 10 ECM Strength 1 Armor Coverage 150 Evasion (%) 55 Targeting Accuracy 5 Melee Accuracy 16 Launcher Accuracy 20 Target Analysis 5 Offensive Hacking 20 Relay Coupler Types 3 Relay Coupler Value 59 Item Schematics ----------------- None Robot Schematics ------------------ None Fabricated ------------ Nothing Repaired ---------- Nothing Alien Tech Used ----------------- None Achievements -------------- None Challenges ------------ None Game ------ Seed TransportAmuletFalx Manual? 0 Play Time 00:16:52 Cumulative 1052.0 hours Start 2025.05.20 @ 18:40:45 End 2025.05.20 @ 18:54:16 Sessions 1 Manual Loads 0 Difficulty Rogue Special Mode None Game No. 1305 Rogue 1022 Adventurer 124 Explorer 159 Win Type - Total 46 Types 32/0/8/4/1/0/0/1/0/0 Lore% 91 Gallery% 86 Achievement% 80 Wizard Run 0 Options --------- Layout 0 ASCII 0 Keyboard 1 Movement Numpad Keybinds 0 Fullscreen 2 Font 18/X11 Map View 76x50 Zoom Use 0% Tactical HUD 1 Map Filters NONE Filters NONE Steam 1 RUN: f7cbf363-9d99-4a59-bae3-6ea7db8748ab